bitfinex-derivatives/quotes_ETHF0:USTF0_20250616
["timestamp","ask_amount","ask_price","bid_price","bid_amount"]
[1750095203690,0.75684,2641.5,2641.4,6.79885]
[1750095205684,1.89198,2641.7,2641.4,6.042]
[1750095205991,0.75684,2641.5,2641.4,6.042]
[1750095206184,0.75684,2641.5,2641.4,6.79887]
[1750095206888,0.75683,2641.6,2641.5,0.7568]
[1750095207286,0.75684,2641.5,2641.4,10.00665]
[1750095208886,5.09956,2642.0,2641.4,9.2498]
[1750095209087,0.75684,2641.6,2641.5,0.75682]
[1750095209786,0.75681,2641.6,2641.5,2.08132]
[1750095209987,0.75679,2641.7,2641.6,0.75679]
[1750095210987,0.7568,2641.7,2641.6,0.75679]
[1750095211486,0.75678,2641.8,2641.7,0.75676]
[1750095211687,1.68608765,2641.8,2641.7,0.75676]
[1750095212087,0.75681,2641.6,2641.5,5.28912]
[1750095212693,0.75681,2641.6,2641.5,5.28914]
[1750095213393,0.75677,2641.8,2641.7,0.75676]
[1750095213590,0.6138,2642.1,2641.6,1.89197]
[1750095213793,0.6138,2642.1,2642.0,0.75668]
[1750095213794,0.7567,2642.1,2642.0,0.75668]
[1750095213994,0.75673,2641.9,2641.8,6.055]
[1750095214490,0.75676,2641.8,2641.7,6.055]
[1750095214989,0.75674,2641.9,2641.8,0.75673]
[1750095216098,0.75671,2642.0,2641.9,0.7567]
[1750095217093,1.89153,2642.3,2641.9,0.7567]
[1750095217094,0.75665,2642.3,2642.2,0.75662]
[1750095219895,0.75667,2642.2,2642.1,0.75665]
[1750095221090,0.75664,2642.3,2642.2,0.75662]
[1750095222501,0.75664,2642.3,2642.2,6.054]
[1750095222699,1.89148,2642.4,2642.0,0.0056858]
[1750095222998,0.75667,2642.1,2642.0,0.0056858]
[1750095225392,0.75667,2642.1,2642.0,0.7623858]
[1750095227902,0.75667,2642.1,2642.0,0.0056858]
[1750095228096,0.75667,2642.1,2642.0,0.7623858]
[1750095228496,0.75667,2642.1,2642.0,0.0056858]
[1750095231809,0.75667,2642.1,2642.0,0.7623858]
[1750095232106,0.75667,2642.1,2642.0,0.0056858]
[1750095232798,4.71412614,2642.1,2642.0,0.0056858]
[1750095232997,0.75678,2641.7,2641.6,0.6324]
[1750095233197,0.75681,2641.6,2641.5,9.2618]
[1750095233402,2.03671,2641.6,2641.5,9.2618]
[1750095234207,0.75687,2641.4,2641.3,0.0056858]
[1750095234404,4.71432614,2641.4,2641.3,0.0056858]
[1750095234803,6.68352614,2641.4,2641.3,0.0056858]
[1750095236103,2.72607,2641.4,2641.3,0.0056858]
[1750095239912,37.142675,2641.4,2640.6,3.2078]
[1750095240116,1.89241,2641.1,2640.6,3.2078]
[1750095240309,0.75704,2640.9,2640.8,0.75701]
[1750095241702,0.75703,2641.0,2640.9,0.75697]
[1750095241909,1.89241,2641.1,2640.7,1.2754]
[1750095242111,0.75704,2640.8,2640.7,0.75705]
[1750095242313,0.75707,2640.7,2640.6,3.9705658]
[1750095242613,0.75707,2640.7,2640.6,10.0015658]
[1750095243015,0.75707,2640.7,2640.6,9.2444858]
[1750095243209,0.75707,2640.7,2640.6,3.2134858]
[1750095245313,0.75707,2640.7,2640.6,0.0056858]
[1750095247315,0.75726,2640.1,2640.0,0.75725]
[1750095247616,0.75727,2640.0,2639.9,1.42939]
[1750095248216,0.75727,2640.0,2639.9,1.4294]
[1750095248418,0.75726,2640.1,2640.0,0.75725]
[1750095249220,0.75727,2640.0,2639.9,1.42936]
[1750095249912,0.75727,2640.0,2639.9,0.75726]
[1750095250111,0.7573,2639.9,2639.8,3.9651]
[1750095250817,0.7573,2639.9,2639.8,3.2078]
[1750095251719,0.7573,2639.9,2639.8,3.96513]
[1750095252120,40.8,2640.4,2639.8,12.58706702]
[1750095252318,1.2812,2640.7,2640.1,10.69375702]
[1750095252618,0.75718,2640.4,2640.3,0.75717]
[1750095253619,0.75718,2640.4,2640.3,1.3513]
[1750095254319,0.75719,2640.3,2640.2,7.42759]
[1750095254618,0.75719,2640.3,2640.2,8.77889]
[1750095255823,0.75719,2640.3,2640.2,0.6374]
[1750095256119,0.75719,2640.3,2640.2,6.6704]
[1750095256821,0.75719,2640.3,2640.1,3.2078]
[1750095256822,0.75721,2640.2,2640.1,6.033]
[1750095258218,0.75724,2640.1,2640.0,0.75726]
[1750095259216,0.7572,2640.4,2640.3,0.75717]
[1750095260121,0.75719,2640.3,2640.2,0.7572]
[1750095260321,0.75719,2640.3,2640.2,6.7902]
[1750095260518,0.75719,2640.3,2640.2,8.1045]
[1750095261326,0.75719,2640.3,2640.2,7.3473]
[1750095261516,0.75719,2640.3,2640.2,6.033]
[1750095262122,0.75719,2640.3,2640.2,6.79021]
[1750095263018,0.75719,2640.3,2640.2,0.75721]
[1750095263523,0.75721,2640.2,2640.1,3.96502]
[1750095264727,0.7572,2640.3,2640.2,0.75718]
[1750095265123,0.75721,2640.2,2640.1,3.2078]
[1750095265422,0.75724,2640.1,2640.0,7.3487]
[1750095265626,0.75724,2640.1,2640.0,6.033]
[1750095266917,0.75724,2640.1,2640.0,6.666]
[1750095267117,0.75724,2640.1,2640.0,7.42327]
[1750095267313,0.75724,2640.2,2640.1,0.75721]
[1750095267514,0.75713,2640.6,2640.5,0.75711]
[1750095267724,3.96487,2640.8,2640.7,0.75707]
[1750095267914,3.13345,2641.2,2640.8,0.75704]
[1750095267915,0.75696,2641.1,2640.8,0.75704]
[1750095268229,3.2078,2641.6,2640.9,1.89253]
[1750095268422,0.7569,2641.4,2641.3,0.75688]
[1750095268624,0.7569,2641.3,2641.2,4.71909362]
[1750095268831,0.7569,2641.3,2641.2,1.39051]
[1750095269223,0.7569,2641.3,2641.2,0.6336]
[1750095269726,0.7569,2641.3,2641.2,1.39053]
[1750095270115,0.0056858,2641.5,2641.1,3.2078]
[1750095270325,4.71911362,2641.2,2641.1,3.2078]
[1750095270825,0.75693,2641.2,2641.1,3.2078]
[1750095271524,0.75693,2641.2,2641.1,3.96476]
[1750095272024,0.75693,2641.2,2641.1,3.2078]
[1750095272330,0.75696,2641.1,2641.0,6.8266658]
[1750095273530,0.75696,2641.1,2641.0,6.0696858]
[1750095273728,3.2134858,2641.5,2641.0,6.0696858]
[1750095273929,0.75693,2641.3,2641.2,0.75691]
[1750095274133,3.2134858,2641.5,2641.0,9.2675358]
[1750095274328,0.7569,2641.3,2641.2,0.75693]
[1750095274929,0.75689,2641.4,2641.3,0.75688]
[1750095275335,3.9703558,2641.5,2641.4,0.75687]
[1750095275533,0.7625558,2641.5,2641.4,0.75687]
[1750095275735,0.0056858,2641.5,2641.4,0.75687]
[1750095276028,5.09921,2642.5,2641.6,1.89204]
[1750095276345,0.7566,2642.4,2642.3,0.75659]
[1750095276537,0.75658,2642.5,2642.4,0.75657]
[1750095277234,1.3077858,2642.7,2642.2,3.2078]
[1750095277532,0.75656,2642.5,2642.4,0.75657]
[1750095278425,1.3077858,2642.7,2642.2,4.558]
[1750095278626,0.75657,2642.5,2642.4,0.75657]
[1750095279328,0.75657,2642.5,2642.2,4.558]
[1750095279329,0.7566,2642.4,2642.3,0.75659]
[1750095279725,4.4762658,2642.7,2642.2,4.558]
[1750095279929,1.89133,2642.6,2642.2,3.2078]
[1750095280135,0.75661,2642.3,2642.2,3.96443]
[1750095281436,0.75676,2641.8,2641.7,0.679]
[1750095282230,0.75676,2641.8,2641.7,1.43579]
[1750095282636,0.75674,2641.9,2641.8,0.75676]
[1750095283232,3.8552,2642.1,2641.7,0.679]
[1750095283233,0.75676,2641.8,2641.7,0.679]
[1750095283848,0.75676,2641.8,2641.7,1.43579]
[1750095284539,0.75676,2641.8,2641.7,0.679]
[1750095284734,0.75676,2641.8,2641.7,1.43579]
[1750095284936,0.75676,2641.8,2641.7,0.679]
[1750095285540,0.75676,2641.8,2641.7,1.43579]
[1750095285843,0.75676,2641.8,2641.7,0.679]
[1750095286236,0.75676,2641.8,2641.7,1.43579]
[1750095287241,0.75679,2641.7,2641.6,0.6775]
[1750095287436,0.75679,2641.7,2641.6,1.43431]
[1750095288339,0.75679,2641.7,2641.6,0.6775]
[1750095288645,0.75679,2641.7,2641.6,1.43432]
[1750095288942,0.75679,2641.7,2641.6,0.6775]
[1750095290145,0.75681,2641.6,2641.5,3.2078]
[1750095290342,0.75681,2641.6,2641.5,3.96464]
[1750095290646,0.75681,2641.7,2641.6,0.75679]
[1750095291743,0.6591,2642.0,2641.5,3.2078]
[1750095291940,0.75679,2641.8,2641.7,0.75677]
[1750095294943,0.75682,2641.7,2641.6,0.7568]
[1750095296948,0.75674,2641.9,2641.8,0.75676]
[1750095297247,1.9602,2642.1,2641.7,1.89194]
[1750095297548,3.96446,2642.2,2642.1,0.75667]
[1750095298145,0.75666,2642.2,2642.1,0.75667]
[1750095299156,0.75663,2642.3,2642.2,0.7566]
[1750095300145,0.75661,2642.4,2642.3,0.75659]
[1750095300342,1.9276,2642.5,2642.4,0.75659]
[1750095300538,0.75656,2642.5,2642.4,0.75659]
[1750095300947,3.8419,2642.6,2642.5,0.75656]
[1750095301255,0.0056858,2642.7,2642.6,0.75653]
[1750095302144,0.7621858,2642.7,2642.6,0.75653]
[1750095302454,0.0056858,2642.7,2642.6,0.75653]
[1750095302747,0.7621858,2642.7,2642.6,0.75653]
[1750095303854,0.0056858,2642.7,2642.6,0.75653]
[1750095304455,0.0056858,2642.7,2642.6,1.41863]
[1750095306253,0.7621858,2642.7,2642.6,1.41863]
[1750095307351,0.0056858,2642.7,2642.6,1.41863]
[1750095308550,1.89062,2643.6,2643.2,0.75631]
[1750095308748,0.75639,2643.1,2643.0,6.85841]
[1750095308949,1.89099,2643.1,2642.7,3.2078]
[1750095309249,0.75647,2642.8,2642.7,3.2078]
[1750095309761,0.75656,2642.5,2642.4,0.0056858]
[1750095310052,3.96436,2642.5,2642.4,0.0056858]
[1750095310250,11.45141724,2642.5,2642.4,0.0056858]
[1750095310757,12.69171724,2642.5,2642.4,0.0056858]
[1750095311053,0.75667,2642.1,2642.0,0.75668]
[1750095311253,0.75673,2642.0,2641.9,0.75671]
[1750095312857,3.21344815,2642.2,2642.1,0.75667]
[1750095313557,3.97008815,2642.2,2642.1,0.75667]
[1750095314351,3.97008815,2642.2,2641.8,7.99389]
[1750095314352,0.75668,2642.1,2642.0,0.75667]
[1750095314657,3.97010815,2642.2,2642.1,0.75667]
[1750095316649,0.00564815,2642.2,2642.1,0.75667]
[1750095318560,0.76228815,2642.2,2642.1,0.75667]
[1750095320061,0.75676,2641.9,2641.7,2.91094103]
[1750095320257,0.75676,2641.9,2641.8,0.75676]
[1750095320258,3.96456,2641.9,2641.8,0.75676]
[1750095320858,3.2078,2641.9,2641.8,0.75676]
[1750095321164,0.75672,2642.0,2641.9,0.75673]
[1750095322557,0.75674,2641.9,2641.8,0.75674]
[1750095323164,0.75672,2642.0,2641.9,0.75671]
[1750095323364,0.75674,2641.9,2641.8,0.75674]
[1750095323868,1.2417,2642.1,2641.7,0.66417451]
[1750095323869,0.75676,2641.8,2641.7,0.66417451]
[1750095324065,0.75676,2641.8,2641.7,0.00567451]
[1750095325658,0.75676,2641.8,2641.3,1.42738]
[1750095325659,0.75687,2641.4,2641.3,1.42738]
[1750095325962,1.89197,2641.7,2641.1,7.47804]
[1750095325963,0.75693,2641.2,2641.1,7.47804]
[1750095326172,0.75693,2641.2,2641.1,6.85994]
[1750095328262,2.0106,2641.4,2640.9,0.00567451]
[1750095328563,0.75699,2641.0,2640.9,0.00567451]
[1750095328765,0.75699,2641.0,2640.9,0.76269451]
[1750095328965,3.2078,2641.1,2641.0,0.75699]
[1750095329171,3.2078,2641.1,2641.0,1.41269]
[1750095329357,3.96476,2641.1,2641.0,1.41269]
[1750095329669,0.75699,2641.0,2640.9,0.00567451]
[1750095330365,3.96478,2641.1,2641.0,0.75699]
[1750095330564,0.75699,2641.0,2640.9,0.00567451]
[1750095330764,0.75716,2640.4,2640.3,6.88317]
[1750095330962,0.75722,2640.2,2640.1,2.05671]
[1750095331268,0.7572,2640.3,2640.2,0.75717]
[1750095331470,0.75725,2640.1,2640.0,6.88327]
[1750095331762,0.75725,2640.1,2640.0,6.126]
[1750095332064,0.67917451,2640.3,2639.8,0.66747451]
[1750095332269,0.75729,2640.0,2639.9,0.75729]
[1750095332766,0.75724,2640.2,2640.1,0.75725]
[1750095332961,0.75724,2640.2,2640.0,0.75725]
[1750095333162,0.75724,2640.2,2639.8,1.98777451]
[1750095333163,0.75722,2640.2,2639.8,1.98777451]
[1750095333367,1.34597451,2640.3,2640.2,0.75722]
[1750095333561,2.10318451,2640.3,2639.8,3.88107451]
[1750095333758,2.10318451,2640.3,2640.2,0.75722]
[1750095334172,0.75724,2640.2,2640.1,0.75723]
[1750095334371,0.75725,2640.1,2640.0,0.75725]
[1750095334568,3.2078,2640.2,2639.8,0.66747451]
[1750095334769,3.9651,2639.9,2639.8,0.76300451]
[1750095335072,3.2078,2639.9,2639.8,0.00567451]
[1750095335369,3.9651,2639.9,2639.8,0.00567451]
[1750095335570,5.2176,2639.9,2639.8,0.76300451]
[1750095335772,5.2176,2639.9,2639.8,0.00567451]
[1750095336375,5.2176,2639.9,2639.8,0.76300451]
[1750095337268,3.2078,2639.9,2639.8,0.76300451]
[1750095337467,3.21347451,2640.3,2640.2,0.75722]
[1750095337867,3.97066451,2640.3,2640.2,0.75722]
[1750095338269,3.21347451,2640.3,2640.2,0.75722]
[1750095340665,3.2078,2640.7,2640.6,0.7571]
[1750095341170,0.6789,2641.3,2640.9,0.75702]
[1750095341371,0.6789,2641.3,2641.2,0.75693]
[1750095341781,0.75695,2641.2,2641.1,0.75694]
[1750095341969,0.75694,2641.2,2641.1,0.75693]
[1750095342169,2.10694,2641.2,2641.1,0.75693]
[1750095342677,0.75697,2641.1,2641.0,0.75697]
[1750095344879,1.35,2641.2,2640.7,6.36689]
[1750095344880,1.35,2641.2,2640.7,1.2664]
[1750095345081,0.75698,2641.1,2641.0,0.75696]
[1750095345774,0.757,2641.0,2640.9,0.757]
[1750095346185,0.75697,2641.1,2641.0,0.75697]
[1750095346484,0.757,2641.0,2640.9,0.75699]
[1750095346869,0.75698,2641.1,2641.0,0.75697]
[1750095347565,3.24237,2641.2,2640.8,3.2078]
[1750095347780,0.75712,2640.6,2640.5,0.75711]
[1750095347975,0.75714,2640.5,2640.4,0.75712]
[1750095348584,0.75712,2640.6,2640.5,0.75712]
[1750095348969,0.7571,2640.7,2640.6,0.75709]
[1750095350082,6.128,2641.0,2640.3,9.9884]
[1750095350275,0.75702,2640.9,2640.8,0.75703]
[1750095350477,13.61505724,2641.0,2640.3,13.19655]
[1750095350678,0.75707,2640.8,2640.7,0.75706]
[1750095351388,0.75703,2640.9,2640.8,0.75702]
[1750095351883,0.75706,2640.8,2640.7,0.75706]
[1750095352584,4.5537,2641.1,2640.8,0.75703]
[1750095352585,0.75703,2640.9,2640.8,0.75703]
[1750095353278,0.757,2641.0,2640.9,0.75699]
[1750095353682,0.75704,2640.9,2640.8,0.75702]
[1750095354385,0.75707,2640.8,2640.7,0.75705]
[1750095355882,0.75703,2640.9,2640.8,0.75701]
[1750095358282,3.2078,2641.1,2641.0,0.75699]
[1750095358477,3.2078,2641.4,2641.2,0.7569]
[1750095358675,0.75689,2641.4,2641.3,0.7569]
[1750095358894,0.75693,2641.3,2641.2,0.75691]
[1750095359091,0.75689,2641.4,2641.3,0.75687]
[1750095360781,0.00567451,2641.5,2641.4,0.75687]
[1750095360982,0.76251451,2641.5,2641.4,0.75687]
[1750095361188,0.00567451,2641.5,2641.4,0.75687]
[1750095361489,0.75693,2641.3,2641.2,6.107]
[1750095361890,0.75693,2641.3,2641.2,6.8639]
[1750095362689,0.75689,2641.4,2641.3,0.75687]
[1750095362890,0.7569,2641.3,2641.2,6.86391]
[1750095363385,0.75689,2641.4,2641.3,0.75687]
[1750095363589,0.76255451,2641.5,2641.4,0.75687]
[1750095363889,0.7569,2641.4,2641.3,0.75689]
[1750095364585,0.75693,2641.2,2641.1,1.39861451]
[1750095364890,0.75693,2641.2,2641.1,0.64167451]
[1750095366791,0.75693,2641.2,2641.1,0.00567451]
[1750095367394,0.75702,2640.9,2640.8,0.6624]
[1750095367592,0.75702,2640.9,2640.8,1.41944]
[1750095367894,0.757,2641.1,2641.0,0.75696]
[1750095368094,0.75702,2640.9,2640.8,1.41943]
[1750095368389,6.107,2641.3,2640.8,1.89262]
[1750095368594,0.00567451,2641.5,2641.1,1.89236]
[1750095368890,0.00567451,2641.5,2641.4,0.75687]
[1750095369090,0.76251451,2641.5,2641.4,0.75687]
[1750095370593,0.00567451,2641.5,2641.4,0.75687]
[1750095370894,0.7569,2641.4,2641.3,0.75687]
[1750095371096,0.76253451,2641.5,2641.4,0.75687]
[1750095371390,0.00567451,2641.5,2641.4,0.75687]
[1750095372391,0.75672,2642.0,2641.9,0.75673]
[1750095372696,3.2078,2642.2,2642.1,0.75667]
[1750095373187,3.2078,2642.2,2641.9,0.7567]
[1750095373188,0.75672,2642.0,2641.9,0.7567]
[1750095373385,0.7567,2642.1,2642.0,0.75668]
[1750095373589,0.75669,2642.1,2642.0,0.75668]
[1750095373793,0.75673,2641.9,2641.8,1.2875]
[1750095373988,0.75673,2641.9,2641.8,0.6423]
[1750095375000,0.75682,2641.6,2641.5,1.40203]
[1750095375194,0.75682,2641.6,2641.5,0.6452]
[1750095375500,0.75684,2641.5,2641.4,0.662]
[1750095382296,0.75693,2641.2,2641.1,6.106]
[1750095382602,0.75693,2641.2,2641.1,7.51925]
[1750095383600,0.75693,2641.2,2641.1,6.7623]
[1750095383804,0.75693,2641.2,2641.1,7.51926]
[1750095384004,0.75693,2641.2,2641.1,10.72706]
[1750095384299,0.75692,2641.3,2641.2,0.75688]
[1750095384494,0.7569,2641.4,2641.3,0.75687]
[1750095385405,0.75686,2641.5,2641.4,0.75684]
[1750095386601,3.2078,2641.9,2641.2,1.3384]
[1750095386802,4.52377451,2642.2,2641.4,14.82492825]
[1750095387011,0.75677,2641.9,2641.8,0.75674]
[1750095387211,0.75679,2641.8,2641.7,0.75677]
[1750095387506,0.75679,2641.7,2641.6,0.6411]
[1750095387694,0.75679,2641.7,2641.4,0.75685]
[1750095387695,7.48705724,2641.7,2641.4,0.75685]
[1750095387899,0.75687,2641.4,2641.3,0.75688]
[1750095388511,1.89205,2641.6,2641.2,7.50401]
[1750095388512,0.7569,2641.3,2641.2,7.50401]
[1750095389005,0.7569,2641.3,2641.2,1.39801]
[1750095390105,0.75689,2641.4,2641.3,0.75686]
[1750095391205,0.75683,2641.6,2641.5,0.75682]
[1750095391908,0.75688,2641.5,2641.4,0.75685]
[1750095392303,1.89208,2641.6,2641.2,0.6411]
[1750095392499,3.1407,2641.7,2641.3,0.75686]
[1750095392500,0.75689,2641.4,2641.3,0.75686]
[1750095393508,0.75686,2641.5,2641.4,0.75683]
[1750095395511,0.7569,2641.4,2641.3,0.75688]
[1750095395808,0.75687,2641.5,2641.4,0.75682]
[1750095396011,0.75681,2641.7,2641.6,0.75678]
[1750095396318,1.89198,2641.7,2641.4,3.2078]
[1750095396511,0.75684,2641.5,2641.4,3.96466]
[1750095396713,0.75684,2641.5,2641.4,3.2078]
[1750095397013,0.75687,2641.4,2641.3,1.40069]
[1750095398018,3.85388,2641.7,2641.1,2.23789101]
[1750095398019,1.89215,2641.5,2641.1,2.23789101]
[1750095398321,1.89215,2641.5,2640.8,2.98385468]
[1750095398322,0.75702,2640.9,2640.8,2.23789101]
[1750095398509,0.75704,2640.8,2640.7,6.20275101]
[1750095398815,0.75704,2640.8,2640.7,3.96486]
[1750095399411,0.75704,2640.8,2640.7,3.2078]
[1750095399917,0.75704,2640.8,2640.7,3.96487]
[1750095400709,0.75704,2640.8,2640.7,3.2078]
[1750095401209,0.75704,2640.8,2640.7,3.96487]
[1750095401406,0.75704,2640.8,2640.7,3.2078]
[1750095401917,1.2938,2641.1,2640.7,3.2078]
[1750095402111,3.2078,2641.3,2641.0,0.75695]
[1750095402416,1.68572388,2641.2,2641.1,0.6136]
[1750095404215,0.75702,2640.9,2640.8,0.75703]
[1750095404416,0.75702,2640.9,2640.8,0.6233]
[1750095405309,0.75704,2640.8,2640.7,3.96487]
[1750095405510,3.2078,2641.3,2640.7,3.2078]
[1750095405711,0.75703,2641.0,2640.9,0.757]
[1750095407220,0.75704,2640.9,2640.8,0.75702]
[1750095407814,0.75704,2640.9,2640.8,0.75704]
[1750095408015,0.75701,2641.0,2640.9,0.75698]
[1750095408623,0.75701,2641.0,2640.9,1.41368]
[1750095410123,0.75701,2641.0,2640.9,0.6567]
[1750095410320,0.75701,2641.0,2640.9,1.41372]
[1750095410620,0.75701,2641.0,2640.9,0.6567]
[1750095418029,1.89256,2640.9,2640.6,1.24557451]
[1750095418231,0.75707,2640.7,2640.6,0.00567451]
[1750095419217,0.75713,2640.5,2640.4,3.8631]
[1750095419432,0.75719,2640.3,2640.2,0.7572]
[1750095419626,0.75719,2640.3,2640.2,0.6684]
[1750095420125,0.75719,2640.3,2640.2,1.42562]
[1750095420330,0.75719,2640.3,2640.2,0.6684]
[1750095420733,0.00567451,2640.5,2640.2,0.6684]
[1750095420734,0.75718,2640.4,2640.2,0.6684]
[1750095421033,0.76283451,2640.5,2640.4,0.75716]
[1750095421625,0.75719,2640.3,2640.2,0.6684]
[1750095422823,0.75719,2640.3,2640.2,1.42562]
[1750095423031,0.75719,2640.3,2640.2,0.6684]
[1750095423831,0.75719,2640.3,2640.2,1.42562]
[1750095424036,0.00567451,2640.5,2640.2,0.6684]
[1750095424227,0.75718,2640.4,2640.3,0.75718]
[1750095424537,0.00567451,2640.5,2640.4,0.75716]
[1750095425332,0.76280451,2640.5,2640.4,0.75716]
[1750095425533,3.2078,2641.0,2640.4,5.0]
[1750095425727,6.087,2641.4,2640.4,5.0]
[1750095425728,0.75687,2641.5,2641.4,0.75685]
[1750095426037,3.96462,2641.6,2641.5,0.75684]
[1750095427332,3.2078,2641.6,2641.5,0.75684]
[1750095427538,0.75685,2641.5,2641.4,0.75685]
[1750095427932,0.75683,2641.6,2641.5,0.75683]
[1750095428338,1.33797451,2641.8,2641.3,0.00567451]
[1750095428534,0.75698,2641.1,2641.0,0.75698]
[1750095428836,0.75702,2640.9,2640.8,1.42654]
[1750095429036,0.75702,2640.9,2640.8,0.6695]
[1750095430533,0.75707,2640.7,2640.6,6.09267451]
[1750095431433,0.75707,2640.7,2640.6,6.84977451]
[1750095431634,0.75702,2641.0,2640.9,0.75701]
[1750095431835,0.75703,2640.9,2640.8,0.75702]
[1750095432042,0.6161,2641.1,2640.7,0.75706]
[1750095432043,0.75706,2640.8,2640.7,0.75706]
[1750095432339,0.75703,2640.9,2640.8,0.75703]
[1750095433941,0.75701,2641.0,2640.9,0.757]
[1750095434132,0.75697,2641.1,2641.0,0.75696]
[1750095434436,0.75702,2640.9,2640.8,1.39893]
[1750095435632,0.75701,2641.0,2640.9,0.75699]
[1750095436242,0.75702,2640.9,2640.8,1.39894]
[1750095436835,0.75702,2640.9,2640.8,0.6419]
[1750095437137,0.75702,2640.9,2640.8,1.39894]
[1750095437338,0.757,2641.0,2640.9,0.75699]
[1750095437838,0.75702,2640.9,2640.8,1.39893]
[1750095438537,0.75702,2640.9,2640.6,0.00567451]
[1750095438538,0.75707,2640.7,2640.6,0.00567451]
[1750095439539,0.75716,2640.4,2640.3,3.96499]
[1750095439940,0.75716,2640.4,2640.3,3.2078]
[1750095440244,3.14033,2640.8,2640.3,3.2078]
[1750095440436,0.75714,2640.6,2640.5,0.75712]
[1750095441140,12.41768,2641.0,2640.4,9.37994724]
[1750095441337,0.75708,2640.8,2640.7,0.75705]
[1750095441531,1.68783796,2640.8,2640.7,0.75705]
[1750095441732,3.96479,2641.0,2640.9,0.75702]
[1750095441937,0.75702,2640.9,2640.8,1.43292]
[1750095442145,3.9648,2641.0,2640.9,0.75702]
[1750095442538,0.75702,2640.9,2640.8,1.43292]
[1750095443542,0.75702,2640.9,2640.8,0.6759]
[1750095443744,0.75702,2640.9,2640.8,1.43294]
[1750095443948,3.2078,2641.1,2640.4,6.087]
[1750095444144,0.75713,2640.5,2640.4,6.087]
[1750095444447,0.75713,2640.5,2640.3,3.21347451]
[1750095444448,0.75715,2640.5,2640.3,3.21347451]
[1750095444644,0.75715,2640.5,2640.4,0.75713]
[1750095445139,0.75716,2640.4,2640.3,3.97065451]
[1750095445539,0.75715,2640.5,2640.4,0.75713]
[1750095446649,0.75709,2640.7,2640.6,0.75706]
[1750095447051,0.75713,2640.5,2640.4,0.6473]
[1750095450145,0.75716,2640.4,2640.3,0.00567451]
[1750095450450,1.98676,2640.4,2640.3,0.00567451]
[1750095450847,2.9165849,2640.4,2640.3,0.00567451]
[1750095451155,2.1594249,2640.4,2640.3,0.00567451]
[1750095451555,2.9165849,2640.4,2640.3,0.00567451]
[1750095453360,0.93152101,2640.4,2640.3,0.00567451]
[1750095453544,0.75716,2640.4,2640.3,0.00567451]
[1750095456550,1.68888278,2640.4,2640.3,0.00567451]
[1750095456750,3.03918278,2640.4,2640.3,0.00567451]
[1750095456953,2.10746,2640.4,2640.3,0.00567451]
[1750095457150,3.03918351,2640.4,2640.3,0.00567451]
[1750095460856,0.93172351,2640.4,2640.3,0.76287451]
[1750095461060,3.2078,2640.5,2640.4,0.75717]
[1750095461263,0.6248,2640.9,2640.4,3.96497]
[1750095461459,0.75706,2640.8,2640.6,8.24414724]
[1750095462365,0.75706,2640.8,2640.5,1.9962]
[1750095462366,0.6248,2640.9,2640.5,0.659]
[1750095462663,0.7571,2640.7,2640.5,1.41613]
[1750095463661,0.75709,2640.7,2640.5,1.41612]
[1750095464364,0.75708,2640.8,2640.6,0.75711]
[1750095464562,0.75704,2640.9,2640.7,0.75707]
[1750095464958,0.75704,2640.9,2640.5,1.9761]
[1750095465264,0.75704,2640.9,2640.7,0.75706]
[1750095465466,0.75704,2640.9,2640.5,1.9761]
[1750095465666,0.6438,2641.0,2640.6,0.7571]
[1750095465862,1.68960657,2640.9,2640.7,0.75707]
[1750095466057,0.75707,2640.8,2640.6,0.7571]
[1750095466760,7.0156,2641.0,2640.5,0.659]
[1750095466956,0.75717,2640.4,2640.3,0.00567451]
[1750095467161,0.75716,2640.5,2640.3,1.40267451]
[1750095467465,1.43734,2640.6,2640.4,0.75717]
[1750095467765,1.43733,2640.6,2640.4,0.75716]
[1750095468068,0.75711,2640.6,2640.5,0.75714]
[1750095468367,0.75717,2640.4,2640.3,0.00567451]
[1750095468659,0.75725,2640.1,2640.0,0.6477]
[1750095468861,6.03413238,2640.4,2639.9,6.095]
[1750095468862,0.75728,2640.0,2639.9,6.095]
[1750095474369,0.75731,2639.9,2639.8,1.37724]
[1750095474567,3.22725451,2640.2,2639.8,0.6199]
[1750095474867,0.75731,2639.9,2639.8,0.6199]
[1750095475070,0.75733,2639.9,2639.7,0.76304451]
[1750095475262,0.75734,2639.8,2639.7,0.00567451]
[1750095475663,0.6224,2640.0,2639.7,0.00567451]
[1750095475870,1.3797,2640.0,2639.8,0.75733]
[1750095476064,0.75732,2639.9,2639.7,0.76301451]
[1750095476267,0.75734,2639.8,2639.7,0.76301451]
[1750095476567,0.6224,2640.0,2639.7,0.76303451]
[1750095476768,0.75731,2639.9,2639.7,0.76303451]
[1750095478771,3.2078,2640.1,2639.7,0.00567451]
[1750095478979,0.93387215,2640.0,2639.7,0.76303451]
[1750095479171,0.75732,2639.9,2639.7,0.76303451]
[1750095479372,0.75732,2639.9,2639.8,0.75734]
[1750095479767,0.7573,2640.0,2639.8,0.75734]
[1750095479964,3.2078,2640.1,2640.0,0.75728]
[1750095480160,3.2078,2640.7,2640.2,1.893]
[1750095480367,3.2078,2641.0,2640.9,0.75702]
[1750095480560,0.75703,2640.9,2640.7,0.75707]
[1750095480871,3.96481,2641.0,2640.8,0.75705]
[1750095481265,3.2078,2641.0,2640.9,0.75702]
[1750095482463,3.2078,2641.0,2640.7,0.6142]
[1750095482666,0.00567451,2641.2,2641.0,0.75699]
[1750095483071,0.76261451,2641.2,2641.0,0.75699]
[1750095483376,0.00567451,2641.2,2641.1,0.75697]